[Event "4NCL Div 1 2018-19"]
[Site "Telford"]
[Date "2019.02.09"]
[Round "5.26"]
[White "Derakhshani, Borna"]
[Black "Szczepkowska, Karina"]
[Result "*"]
[ECO "B61"]
[WhiteElo "2324"]
[BlackElo "2404"]
[Annotator "NA"]
[PlyCount "33"]
[EventDate "2018.11.10"]
[EventType "team-tourn"]
[EventCountry "GBR"]
[SourceTitle "playchess.com"]
[Source "ChessBase"]
[SourceQuality "1"]
[TimeControl "40/6000+30:3000+30"]

1. e4 {[%emt 0:00:10]} c5 {[%emt 0:00:00]} 2. Nf3 {[%emt 0:01:06]} d6 {[%emt 0:00:03]} 3. d4 {[%emt 0:02:48]} cxd4 {[%emt 0:00:07]} 4. Nxd4 {[%emt 0:00:04]} Nf6 {[%emt 0:00:07]} 5. Nc3 {[%emt 0:00:04]} Nc6 {[%emt 0:00:05]} 6. Bg5 {[%emt 0:00:06]} Bd7 {[%emt 0:00:25]} 7. Qd2 {[%emt 0:05:01]} Rc8 {[%emt 0:01:21]} 8. O-O-O {[%emt 0:05:22]} Nxd4 {[%emt 0:00:54]} 9. Qxd4 {[%emt 0:04:01]} Qa5 10. Bxf6 {[%emt 0:19:26]} gxf6 {[%emt 0:00:12]} 11. f4 {[%emt 0:01:05]} Bg7 {[%emt 0:21:00]} 12. Kb1 {[%emt 0:02:04]} Qc5 {[%emt 0:00:27]} 13. f5 {[%emt 0:01:22]} Bh6 {[%emt 0:07:25]} 14. Qxc5 Rxc5 {[%emt 0:03:36]} 15. Nd5 {[%emt 0:02:36]} Rc8 {[%emt 0:08:07]} 16. Be2 {[%emt 0:06:57]} Bc6 {[%emt 0:08:10]} 17. Rhf1 {[%emt 0:00:43]} *

[Event "4NCL Div 1 2018-19"]
[Site "Telford"]
[Date "2019.02.09"]
[Round "5.27"]
[White "Kulon, Klaudia"]
[Black "De Verdier, Michael"]
[Result "1-0"]
[ECO "A13"]
[WhiteElo "2327"]
[BlackElo "2311"]
[Annotator "NA"]
[PlyCount "71"]
[EventDate "2018.11.10"]
[EventType "team-tourn"]
[EventCountry "GBR"]
[SourceTitle "playchess.com"]
[Source "ChessBase"]
[SourceQuality "1"]
[TimeControl "40/6000+30:3000+30"]

1. c4 {[%emt 0:00:00]} e6 {[%emt 0:00:00]} 2. g3 {[%emt 0:00:00]} d5 {[%emt 0:00:24]} 3. Bg2 {[%emt 0:00:00]} Nf6 {[%emt 0:00:15]} 4. Nf3 {[%emt 0:00:00]} dxc4 {[%emt 0:00:07]} 5. Na3 {[%emt 0:00:13]} Bxa3 {[%emt 0:01:14]} 6. bxa3 {[%emt 0:00:03]} Nbd7 {[%emt 0:00:38]} 7. Qc2 {[%emt 0:03:23]} O-O {[%emt 0:03:24]} 8. O-O {[%emt 0:14:45]} c5 {[%emt 0:06:06]} 9. Qxc4 {[%emt 0:04:22]} b6 {[%emt 0:03:39]} 10. Bb2 {[%emt 0:08:11]} Bb7 {[%emt 0:00:36]} 11. Rfd1 {[%emt 0:00:29]} Rc8 {[%emt 0:06:31]} 12. d3 {[%emt 0:03:19]} Qe7 {[%emt 0:15:16]} 13. Qa4 {[%emt 0:06:17]} a6 {[%emt 0:08:48]} 14. Rab1 {[%emt 0:02:01]} Nd5 {[%emt 0:08:18]} 15. Qg4 {[%emt 0:06:29]} f6 {[%emt 0:06:19]} 16. e4 {[%emt 0:10:20]} Nc7 {[%emt 0:01:38]} 17. d4 {[%emt 0:03:18]} cxd4 {[%emt 0:07:52]} 18. Bxd4 {[%emt 0:03:25]} Nb5 {[%emt 0:02:23]} 19. a4 {[%emt 0:02:58]} Na3 {[%emt 0:09:33]} 20. Rb3 {[%emt 0:03:00]} Nc4 {[%emt 0:00:13]} 21. Bf1 {[%emt 0:01:37]} Kh8 {[%emt 0:06:50]} 22. Bc3 {[%emt 0:03:03]} Rfd8 {[%emt 0:04:37]} 23. Bb4 {[%emt 0:09:47]} Qe8 {[%emt 0:01:37]} 24. Nd4 {[%emt 0:04:06]} Nde5 {[%emt 0:02:00]} 25. Qe2 {[%emt 0:00:20]} b5 {[%emt 0:03:41]} 26. axb5 {[%emt 0:00:43]} axb5 {[%emt 0:00:01]} 27. f4 {[%emt 0:03:01]} Nf7 {[%emt 0:02:41]} 28. Bh3 {[%emt 0:00:37]} Ra8 {[%emt 0:02:26]} 29. Nxe6 {[%emt 0:03:26]} Rxd1+ 30. Qxd1 {[%emt 0:00:01]} Bxe4 {[%emt 0:02:27]} 31. Bf8 {[%emt 0:02:39]} f5 {[%emt 0:02:20]} 32. Qd4 {[%emt 0:00:19]} Nce5 {[%emt 0:02:33]} 33. Bxg7+ {[%emt 0:01:38]} Kg8 {[%emt 0:00:00]} 34. Bxe5 {[%emt 0:00:13]} Rxa2 {[%emt 0:01:57]} 35. Bh8 {[%emt 0:00:41]} Nxh8 {[%emt 0:00:34]} 36. Qg7# {[%emt 0:00:03]} 1-0

[Event "4NCL Div 1 2018-19"]
[Site "Telford"]
[Date "2019.02.09"]
[Round "5.27"]
[White "McKay, Roderick M"]
[Black "D'Costa, Lorin A R"]
[Result "1-0"]
[ECO "A46"]
[WhiteElo "2309"]
[BlackElo "2402"]
[Annotator "NA"]
[PlyCount "65"]
[EventDate "2018.11.10"]
[EventType "team-tourn"]
[EventCountry "GBR"]
[SourceTitle "playchess.com"]
[Source "ChessBase"]
[SourceQuality "1"]
[TimeControl "40/6000+30:3000+30"]

1. d4 {[%emt 0:00:00]} Nf6 {[%emt 0:12:20]} 2. Nf3 {[%emt 0:00:29]} e6 {[%emt 0:00:47]} 3. a3 {[%emt 0:00:21]} b6 {[%emt 0:01:40]} 4. Bg5 {[%emt 0:09:53]} Bb7 {[%emt 0:00:34]} 5. Nbd2 {[%emt 0:04:49]} h6 {[%emt 0:02:31]} 6. Bxf6 {[%emt 0:01:34]} Qxf6 {[%emt 0:00:18]} 7. e3 {[%emt 0:00:50]} g6 {[%emt 0:13:45]} 8. Bd3 {[%emt 0:01:51]} Bg7 {[%emt 0:09:12]} 9. Qe2 {[%emt 0:01:12]} Qe7 {[%emt 0:02:05]} 10. c3 {[%emt 0:05:18]} d6 {[%emt 0:02:19]} 11. h4 {[%emt 0:01:49]} a6 {[%emt 0:02:14]} 12. O-O-O {[%emt 0:06:44]} Nd7 {[%emt 0:02:39]} 13. Be4 {[%emt 0:04:09]} c6 {[%emt 0:03:16]} 14. Bc2 {[%emt 0:05:00]} b5 {[%emt 0:01:22]} 15. e4 {[%emt 0:09:55]} c5 {[%emt 0:16:21]} 16. Nb3 {[%emt 0:02:23]} Rc8 {[%emt 0:02:25]} 17. dxc5 {[%emt 0:09:35]} dxc5 {[%emt 0:06:56]} 18. h5 {[%emt 0:03:05]} g5 {[%emt 0:00:55]} 19. e5 {[%emt 0:06:05]} Bd5 {[%emt 0:16:33]} 20. Rhe1 {[%emt 0:10:33]} Nb6 {[%emt 0:03:44]} 21. Nbd2 {[%emt 0:01:21]} Nc4 {[%emt 0:04:09]} 22. Nxc4 {[%emt 0:00:41]} Bxc4 {[%emt 0:00:06]} 23. Qe3 {[%emt 0:05:57]} b4 {[%emt 0:01:04]} 24. Qe4 {[%emt 0:07:15]} Bb5 {[%emt 0:00:28]} 25. Rd6 {[%emt 0:00:29]} bxa3 {[%emt 0:00:57]} 26. bxa3 {[%emt 0:01:21]} Qc7 {[%emt 0:01:23]} 27. Red1 {[%emt 0:01:12]} Ke7 {[%emt 0:00:56]} 28. Qg4 {[%emt 0:04:33]} Rhd8 {[%emt 0:01:26]} 29. Nxg5 {[%emt 0:01:06]} Bxe5 {[%emt 0:00:41]} 30. Rxe6+ {[%emt 0:00:23]} fxe6 {[%emt 0:00:36]} 31. Qxe6+ {[%emt 0:01:32]} Kf8 {[%emt 0:00:04]} 32. Qxh6+ {[%emt 0:00:33]} Ke7 {[%emt 0:01:37]} 33. Qh7+ {[%emt 0:00:30]} 1-0

[Event "4NCL Div 1 2018-19"]
[Site "Telford"]
[Date "2019.02.09"]
[Round "5.28"]
[White "Sowray, Peter J"]
[Black "Morrison, Graham"]
[Result "1-0"]
[ECO "E46"]
[WhiteElo "2353"]
[BlackElo "2300"]
[Annotator "NA"]
[PlyCount "73"]
[EventDate "2018.11.10"]
[EventType "team-tourn"]
[EventCountry "GBR"]
[SourceTitle "playchess.com"]
[Source "ChessBase"]
[SourceQuality "1"]
[TimeControl "40/6000+30:3000+30"]

1. d4 {[%emt 0:00:00]} Nf6 {[%emt 0:00:00]} 2. c4 {[%emt 0:00:00]} e6 {[%emt 0:00:00]} 3. Nc3 {[%emt 0:00:00]} Bb4 {[%emt 0:00:12]} 4. e3 {[%emt 0:00:00]} O-O {[%emt 0:00:31]} 5. Nge2 {[%emt 0:00:00]} Re8 {[%emt 0:00:50]} 6. a3 {[%emt 0:00:07]} Bf8 {[%emt 0:00:09]} 7. d5 {[%emt 0:00:07]} a5 {[%emt 0:00:41]} 8. Nd4 {[%emt 0:00:05]} Na6 {[%emt 0:02:20]} 9. Bd3 {[%emt 0:00:35]} Nc5 {[%emt 0:04:38]} 10. Bc2 {[%emt 0:00:35]} d6 {[%emt 0:07:32]} 11. b3 {[%emt 0:09:15]} Bd7 {[%emt 0:03:53]} 12. O-O {[%emt 0:04:31]} exd5 {[%emt 0:14:37]} 13. cxd5 {[%emt 0:00:32]} c6 {[%emt 0:04:19]} 14. Bb2 {[%emt 0:09:44]} Qb6 {[%emt 0:06:39]} 15. Qf3 {[%emt 0:09:32]} Re5 {[%emt 0:08:30]} 16. dxc6 {[%emt 0:15:33]} bxc6 {[%emt 0:00:19]} 17. h3 {[%emt 0:00:48]} Rae8 {[%emt 0:05:13]} 18. Rad1 {[%emt 0:06:31]} d5 {[%emt 0:00:47]} 19. Nce2 {[%emt 0:09:31]} Nce4 {[%emt 0:06:15]} 20. Ng3 {[%emt 0:05:39]} Nxg3 {[%emt 0:03:00]} 21. Qxg3 {[%emt 0:00:06]} Ne4 {[%emt 0:01:15]} 22. Qf3 {[%emt 0:07:52]} g6 {[%emt 0:12:33]} 23. Qe2 {[%emt 0:07:20]} Bg7 {[%emt 0:02:09]} 24. Bxe4 {[%emt 0:05:30]} Rxe4 {[%emt 0:00:52]} 25. Qc2 {[%emt 0:00:19]} c5 {[%emt 0:10:35]} 26. Ne2 {[%emt 0:02:19]} Bxb2 {[%emt 0:00:25]} 27. Qxb2 {[%emt 0:00:47]} Bc6 {[%emt 0:03:49]} 28. Rd2 {[%emt 0:04:28]} Bb5 {[%emt 0:05:13]} 29. Nc3 {[%emt 0:02:21]} Bxf1 {[%emt 0:00:35]} 30. Nxd5 {[%emt 0:00:48]} Qc6 {[%emt 0:02:18]} 31. Nf6+ {[%emt 0:01:03]} Kf8 {[%emt 0:00:12]} 32. Kxf1 {[%emt 0:02:27]} h5 {[%emt 0:01:57]} 33. Qc3 {[%emt 0:01:30]} Qb5+ {[%emt 0:00:47]} 34. Kg1 {[%emt 0:00:22]} R4e6 {[%emt 0:01:10]} 35. Nxe8 {[%emt 0:00:44]} Rxe8 {[%emt 0:00:11]} 36. Rd5 {[%emt 0:01:14]} Rb8 {[%emt 0:01:21]} 37. Rxc5 {[%emt 0:00:22]} 1-0

[Event "4NCL Div 1 2018-19"]
[Site "Telford"]
[Date "2019.02.09"]
[Round "5.28"]
[White "Weaving, Richard"]
[Black "Maurizzi, Marc Andria"]
[Result "1-0"]
[ECO "C07"]
[WhiteElo "2322"]
[BlackElo "2268"]
[Annotator "NA"]
[PlyCount "79"]
[EventDate "2018.11.10"]
[EventType "team-tourn"]
[EventCountry "GBR"]
[SourceTitle "playchess.com"]
[Source "ChessBase"]
[SourceQuality "1"]
[TimeControl "40/6000+30:3000+30"]

1. e4 {[%emt 0:08:00]} e6 {[%emt 0:00:00]} 2. d4 {[%emt 0:00:16]} d5 {[%emt 0:00:00]} 3. Nd2 {[%emt 0:00:06]} c5 {[%emt 0:00:00]} 4. exd5 {[%emt 0:01:01]} Qxd5 {[%emt 0:00:31]} 5. dxc5 {[%emt 0:00:41]} Nf6 {[%emt 0:01:32]} 6. Ngf3 {[%emt 0:00:55]} Qxc5 {[%emt 0:00:56]} 7. Bd3 {[%emt 0:05:24]} Nbd7 {[%emt 0:05:27]} 8. O-O {[%emt 0:02:08]} Be7 {[%emt 0:00:19]} 9. Qe2 {[%emt 0:05:07]} Qc7 {[%emt 0:09:40]} 10. Nb3 {[%emt 0:04:35]} O-O {[%emt 0:01:30]} 11. Re1 {[%emt 0:02:07]} b6 {[%emt 0:01:56]} 12. Nbd4 {[%emt 0:05:41]} Nc5 {[%emt 0:18:21]} 13. Bc4 {[%emt 0:05:17]} a6 {[%emt 0:18:19]} 14. a4 {[%emt 0:08:45]} Bb7 {[%emt 0:07:05]} 15. Bg5 {[%emt 0:21:12]} Nd5 {[%emt 0:03:33]} 16. Bxe7 {[%emt 0:05:54]} Qxe7 {[%emt 0:00:27]} 17. Qe5 {[%emt 0:04:22]} Qf6 {[%emt 0:06:19]} 18. Bxd5 {[%emt 0:07:39]} Bxd5 {[%emt 0:01:50]} 19. b4 {[%emt 0:01:23]} Nd7 {[%emt 0:03:33]} 20. Qd6 {[%emt 0:00:41]} Rfd8 {[%emt 0:05:33]} 21. c4 {[%emt 0:05:12]} Nf8 {[%emt 0:04:22]} 22. Qxb6 {[%emt 0:01:43]} Bxc4 {[%emt 0:00:52]} 23. Nc6 {[%emt 0:01:25]} Rdc8 {[%emt 0:08:15]} 24. Qc5 {[%emt 0:02:39]} Rxc6 {[%emt 0:05:53]} 25. Qxc6 {[%emt 0:00:06]} Bd5 {[%emt 0:00:05]} 26. Qc7 {[%emt 0:01:56]} Bxf3 {[%emt 0:01:23]} 27. gxf3 {[%emt 0:00:07]} Ng6 {[%emt 0:01:03]} 28. Rac1 {[%emt 0:03:34]} h5 {[%emt 0:00:25]} 29. Qb7 {[%emt 0:02:48]} Rd8 {[%emt 0:03:00]} 30. Red1 {[%emt 0:01:34]} Rxd1+ {[%emt 0:02:14]} 31. Rxd1 {[%emt 0:00:04]} Nf4 {[%emt 0:00:29]} 32. Kh1 {[%emt 0:00:49]} Nd5 {[%emt 0:00:07]} 33. Qb8+ {[%emt 0:01:13]} Kh7 {[%emt 0:00:01]} 34. Qg3 {[%emt 0:01:09]} Nxb4 {[%emt 0:00:25]} 35. f4 {[%emt 0:00:46]} Nd5 {[%emt 0:00:27]} 36. Qg5 {[%emt 0:00:36]} Qxg5 {[%emt 0:01:27]} 37. fxg5 {[%emt 0:00:05]} Kg6 {[%emt 0:00:39]} 38. Rc1 {[%emt 0:01:05]} a5 {[%emt 0:00:20]} 39. Rc5 {[%emt 0:00:26]} Nb6 {[%emt 0:00:05]} 40. Rxa5 {[%emt 0:00:14]} 1-0

[Event "4NCL Div 1 2018-19"]
[Site "Telford"]
[Date "2019.02.09"]
[Round "5.29"]
[White "Reimanis, Ritvars"]
[Black "Stepanyan, Henrik"]
[Result "1-0"]
[ECO "D34"]
[WhiteElo "2324"]
[BlackElo "2158"]
[Annotator "ChessBase"]
[PlyCount "167"]
[EventDate "2018.11.10"]
[EventType "team-tourn"]
[EventCountry "GBR"]
[SourceTitle "playchess.com"]
[Source "ChessBase"]
[SourceQuality "1"]
[TimeControl "40/6000+30:3000+30"]

1. d4 {[%emt 0:00:04]} d5 {[%emt 0:00:00]} 2. c4 {[%emt 0:00:04]} e6 {[%emt 0:00:00]} 3. Nc3 {[%emt 0:00:14]} c5 {[%emt 0:01:06]} 4. cxd5 {[%emt 0:00:06]} exd5 {[%emt 0:00:02]} 5. Nf3 {[%emt 0:00:05]} Nc6 {[%emt 0:00:02]} 6. g3 {[%emt 0:00:08]} Nf6 {[%emt 0:00:02]} 7. Bg2 {[%emt 0:00:06]} Be7 {[%emt 0:00:01]} 8. O-O {[%emt 0:00:19]} O-O {[%emt 0:00:03]} 9. Bg5 {[%emt 0:00:04]} c4 {[%emt 0:00:04]} 10. b3 {[%emt 0:09:49]} Qa5 {[%emt 0:02:04]} 11. Rc1 {[%emt 0:00:20]} Rd8 {[%emt 0:34:51]} 12. Bxf6 {[%emt 0:06:18]} Bxf6 {[%emt 0:00:15]} 13. e3 {[%emt 0:01:51]} Bf5 {[%emt 0:10:52]} 14. Ne1 {[%emt 0:13:31]} Rac8 {[%emt 0:12:25]} 15. bxc4 {[%emt 0:20:44]} dxc4 {[%emt 0:00:05]} 16. Ne4 {[%emt 0:06:18]} Bxe4 {[%emt 0:10:07]} 17. Bxe4 {[%emt 0:00:06]} Qxa2 {[%emt 0:00:03]} 18. Ra1 {[%emt 0:07:52]} Qb3 {[%emt 0:13:00]} 19. Qxb3 {[%emt 0:06:31]} cxb3 {[%emt 0:00:02]} 20. Nf3 {[%emt 0:00:53]} b2 {[%emt 0:21:25]} 21. Ra2 {[%emt 0:04:14]} b6 {[%emt 0:00:40]} 22. Rxb2 {[%emt 0:01:20]} Na5 {[%emt 0:00:11]} 23. Bf5 {[%emt 0:06:19]} Rc3 {[%emt 0:00:43]} 24. Nd2 {[%emt 0:00:07]} Nc4 {[%emt 0:01:20]} 25. Nxc4 {[%emt 0:00:06]} Rxc4 {[%emt 0:00:00]} 26. Ra1 {[%emt 0:00:19]} g6 {[%emt 0:01:31]} 27. Bh3 {[%emt 0:02:18]} Rc7 {[%emt 0:00:52]} 28. Ra6 {[%emt 0:00:01]} Rb8 {[%emt 0:01:35]} 29. Rba2 {[%emt 0:00:22]} Be7 {[%emt 0:00:36]} 30. Rxa7 {[%emt 0:00:25]} Rxa7 {[%emt 0:00:01]} 31. Rxa7 {[%emt 0:00:07]} Kf8 {[%emt 0:00:29]} 32. Bg2 {[%emt 0:00:18]} b5 {[%emt 0:00:32]} 33. Bd5 {[%emt 0:00:05]} b4 {[%emt 0:00:03]} 34. Bb3 {[%emt 0:00:07]} Rc8 {[%emt 0:00:00]} 35. Rb7 {[%emt 0:00:11]} Rc3 {[%emt 0:00:22]} 36. Bd5 {[%emt 0:00:41]} h6 {[%emt 0:00:52]} 37. h4 {[%emt 0:02:05]} Rc1+ {[%emt 0:00:40]} 38. Kg2 {[%emt 0:00:06]} Rc2 {[%emt 0:00:03]} 39. Kf3 {[%emt 0:01:04]} h5 {[%emt 0:01:18]} 40. e4 {[%emt 0:10:37]} Rc3+ {[%emt 0:00:48]} 41. Ke2 {[%emt 0:52:06]} Rc2+ {[%emt 0:50:35]} 42. Ke3 {[%emt 0:00:06]} Rc3+ {[%emt 0:00:36]} 43. Kd2 {[%emt 0:00:17]} Rf3 {[%emt 0:00:26]} 44. Ke2 {[%emt 0:00:20]} Rc3 {[%emt 0:00:02]} 45. e5 {[%emt 0:00:28]} Rc2+ {[%emt 0:00:16]} 46. Ke3 {[%emt 0:00:12]} Rc3+ {[%emt 0:00:02]} 47. Kd2 {[%emt 0:05:46]} Ra3 {[%emt 0:01:22]} 48. Rb8+ {[%emt 0:07:43]} Kg7 {[%emt 0:00:04]} 49. Bc4 {[%emt 0:00:00]} Rc3 {[%emt 0:00:00]} 50. Bd3 {[%emt 0:00:00]} Ra3 {[%emt 0:00:00]} 51. d5 {[%emt 0:00:00]} Bc5 {[%emt 0:00:00]} 52. d6 {[%emt 0:00:00]} Ra2+ {[%emt 0:00:00]} 53. Kd1 {[%emt 0:00:00]} Ra1+ {[%emt 0:00:00]} 54. Kc2 {[%emt 0:00:00]} Ra2+ {[%emt 0:00:00]} 55. Kb1 {[%emt 0:00:00]} Ra7 {[%emt 0:00:00]} 56. f4 {[%emt 0:00:00]} Bf2 {[%emt 0:00:00]} 57. Bb5 {[%emt 0:00:00]} b3 {[%emt 0:00:00]} 58. Bc6 {[%emt 0:00:00]} Bxg3 {[%emt 0:00:00]} 59. d7 {[%emt 0:00:00]} Bxh4 {[%emt 0:00:00]} 60. d8=Q {[%emt 0:00:00]} Bxd8 {[%emt 0:00:00]} 61. Rxd8 {[%emt 0:00:00]} Ra6 {[%emt 0:00:00]} 62. Bd5 {[%emt 0:02:36]} Ra4 {[%emt 0:00:00]} 63. Rd7 {[%emt 0:00:08]} Rxf4 {[%emt 0:00:00]} 64. Bxf7 {[%emt 0:01:46]} h4 {[%emt 0:00:00]} 65. Bxb3+ {[%emt 0:00:10]} Kh6 {[%emt 0:00:00]} 66. Rd3 {[%emt 0:00:36]} Re4 {[%emt 0:00:00]} 67. e6 {[%emt 0:00:26]} g5 {[%emt 0:00:00]} 68. Rd8 {[%emt 0:00:07]} g4 {[%emt 0:00:00]} 69. Kc2 {[%emt 0:01:59]} g3 {[%emt 0:00:00]} 70. Rg8 {[%emt 0:01:34]} Kh7 {[%emt 0:00:00]} 71. Rg5 {[%emt 0:00:24]} Kh6 {[%emt 0:00:00]} 72. Rg8 {[%emt 0:00:00]} Kh7 {[%emt 0:00:00]} 73. Kd3 {[%emt 0:01:59]} Rb4 {[%emt 0:00:00]} 74. Bd5 {[%emt 0:00:31]} Rb5 {[%emt 0:00:00]} 75. Bc4 {[%emt 0:00:48]} Re5 {[%emt 0:00:00]} 76. Rg4 {[%emt 0:00:10]} Kh6 {[%emt 0:00:00]} 77. Rxh4+ {[%emt 0:00:23]} Kg5 {[%emt 0:00:00]} 78. Rh8 {[%emt 0:00:26]} Kf4 {[%emt 0:00:00]} 79. Rf8+ {[%emt 0:00:42]} Kg4 {[%emt 0:00:00]} 80. Kd4 {[%emt 0:00:17]} Re1 {[%emt 0:00:00]} 81. Bd5 {[%emt 0:00:11]} Rd1+ {[%emt 0:00:00]} 82. Ke5 {[%emt 0:00:06]} Re1+ {[%emt 0:00:00]} 83. Be4 {[%emt 0:00:09]} Kh3 {[%emt 0:00:00]} 84. Rh8+ {[%emt 0:00:05]} 1-0

[Event "4NCL Div 1 2018-19"]
[Site "Telford"]
[Date "2019.02.09"]
[Round "5.29"]
[White "Berry, Neil"]
[Black "Pigott, John C"]
[Result "1-0"]
[ECO "E08"]
[WhiteElo "2274"]
[BlackElo "2388"]
[Annotator "NA"]
[PlyCount "75"]
[EventDate "2018.11.10"]
[EventType "team-tourn"]
[EventCountry "GBR"]
[SourceTitle "playchess.com"]
[Source "ChessBase"]
[SourceQuality "1"]
[TimeControl "40/6000+30:3000+30"]

1. d4 {[%emt 0:00:00]} Nf6 {[%emt 0:00:00]} 2. c4 {[%emt 0:00:05]} e6 {[%emt 0:00:16]} 3. Nf3 {[%emt 0:01:03]} d5 {[%emt 0:00:35]} 4. g3 {[%emt 0:01:16]} Bb4+ {[%emt 0:01:05]} 5. Bd2 {[%emt 0:00:15]} Be7 {[%emt 0:00:09]} 6. Bg2 {[%emt 0:01:06]} O-O {[%emt 0:00:12]} 7. O-O {[%emt 0:00:13]} c6 {[%emt 0:00:19]} 8. Qc2 {[%emt 0:02:01]} Nbd7 {[%emt 0:00:18]} 9. Bf4 {[%emt 0:02:31]} b6 {[%emt 0:00:55]} 10. Rd1 {[%emt 0:03:50]} Ba6 {[%emt 0:02:01]} 11. cxd5 {[%emt 0:05:05]} cxd5 {[%emt 0:00:10]} 12. Ne5 {[%emt 0:00:44]} Nxe5 {[%emt 0:00:19]} 13. dxe5 {[%emt 0:01:43]} Ng4 {[%emt 0:00:08]} 14. h3 {[%emt 0:12:26]} Rc8 {[%emt 0:01:25]} 15. Nc3 {[%emt 0:07:55]} Nxf2 {[%emt 0:02:46]} 16. Kxf2 {[%emt 0:05:23]} Bc5+ {[%emt 0:00:53]} 17. Be3 {[%emt 0:25:08]} Bxe3+ {[%emt 0:14:27]} 18. Kxe3 {[%emt 0:00:08]} b5 {[%emt 0:00:44]} 19. Qd2 {[%emt 0:09:58]} Qb6+ {[%emt 0:05:56]} 20. Qd4 {[%emt 0:01:55]} Qb8 {[%emt 0:00:11]} 21. Kf2 {[%emt 0:05:38]} b4 {[%emt 0:03:01]} 22. Nxd5 {[%emt 0:04:50]} exd5 {[%emt 0:02:19]} 23. Bxd5 {[%emt 0:34:04]} Rc2 {[%emt 0:33:58]} 24. Rd2 {[%emt 0:00:00]} Rxd2 {[%emt 0:00:57]} 25. Qxd2 {[%emt 0:00:00]} Qxe5 {[%emt 0:00:19]} 26. Bf3 {[%emt 0:00:00]} Re8 {[%emt 0:06:59]} 27. Rc1 {[%emt 0:00:00]} h6 {[%emt 0:07:16]} 28. b3 {[%emt 0:00:00]} Bb5 {[%emt 0:06:14]} 29. Qf4 {[%emt 0:00:00]} Qe6 {[%emt 0:06:30]} 30. Bg4 {[%emt 0:00:00]} f5 {[%emt 0:08:04]} 31. Bh5 {[%emt 0:00:00]} g6 {[%emt 0:01:13]} 32. Bf3 {[%emt 0:00:00]} Bxe2 {[%emt 0:01:32]} 33. Rc6 {[%emt 0:00:00]} Qd7 {[%emt 0:01:53]} 34. Rxg6+ {[%emt 0:00:00]} Kf7 {[%emt 0:00:06]} 35. Rd6 {[%emt 0:00:00]} Qc8 {[%emt 0:01:00]} 36. Bd5+ {[%emt 0:00:00]} Ke7 {[%emt 0:00:34]} 37. Qe5+ {[%emt 0:00:00]} Kf8 {[%emt 0:00:12]} 38. Qf6# {[%emt 0:00:00]} 1-0

[Event "4NCL Div 1 2018-19"]
[Site "Telford"]
[Date "2019.02.09"]
[Round "5.30"]
[White "Griffiths, Ryan Rhys"]
[Black "Findlay, David John"]
[Result "1-0"]
[ECO "A13"]
[WhiteElo "2358"]
[BlackElo "2183"]
[Annotator "NA"]
[PlyCount "77"]
[EventDate "2018.11.10"]
[EventType "team-tourn"]
[EventCountry "GBR"]
[SourceTitle "playchess.com"]
[Source "ChessBase"]
[SourceQuality "1"]
[TimeControl "40/6000+30:3000+30"]

1. c4 {[%emt 0:00:00]} e6 {[%emt 0:00:00]} 2. g3 {[%emt 0:00:07]} d5 {[%emt 0:00:21]} 3. Bg2 {[%emt 0:00:08]} Nf6 {[%emt 0:00:33]} 4. Nf3 {[%emt 0:00:11]} a6 {[%emt 0:00:44]} 5. b3 {[%emt 0:01:39]} c5 {[%emt 0:01:37]} 6. cxd5 {[%emt 0:00:09]} exd5 {[%emt 0:01:11]} 7. d4 {[%emt 0:00:08]} Nc6 {[%emt 0:03:03]} 8. O-O {[%emt 0:00:27]} Be7 {[%emt 0:03:01]} 9. dxc5 {[%emt 0:02:18]} Bxc5 {[%emt 0:02:48]} 10. Ba3 {[%emt 0:02:19]} Bxa3 {[%emt 0:05:51]} 11. Nxa3 {[%emt 0:00:11]} O-O {[%emt 0:00:30]} 12. Nc2 {[%emt 0:00:18]} Re8 {[%emt 0:08:23]} 13. Ncd4 {[%emt 0:00:28]} Ne4 {[%emt 0:04:11]} 14. Rc1 {[%emt 0:01:21]} Bd7 {[%emt 0:09:47]} 15. Nxc6 {[%emt 0:03:56]} Bxc6 {[%emt 0:01:00]} 16. Qd4 {[%emt 0:03:14]} Bb5 {[%emt 0:07:25]} 17. Rc2 {[%emt 0:03:20]} Rc8 {[%emt 0:06:58]} 18. Rfc1 {[%emt 0:02:15]} Qd7 {[%emt 0:01:52]} 19. e3 {[%emt 0:14:32]} Rxc2 {[%emt 0:04:11]} 20. Rxc2 {[%emt 0:00:09]} Rc8 {[%emt 0:01:16]} 21. Qb2 {[%emt 0:05:25]} f6 {[%emt 0:14:54]} 22. a4 {[%emt 0:06:00]} Bd3 {[%emt 0:00:41]} 23. Rxc8+ {[%emt 0:03:44]} Qxc8 {[%emt 0:00:16]} 24. Ne1 {[%emt 0:00:33]} Nc5 {[%emt 0:06:34]} 25. Bxd5+ {[%emt 0:04:13]} Kh8 {[%emt 0:00:24]} 26. Nxd3 {[%emt 0:04:23]} Nxd3 {[%emt 0:00:39]} 27. Qd2 {[%emt 0:00:16]} Nc5 {[%emt 0:06:59]} 28. Qc2 {[%emt 0:01:24]} a5 {[%emt 0:03:46]} 29. Bxb7 {[%emt 0:03:46]} Qxb7 {[%emt 0:00:15]} 30. Qxc5 {[%emt 0:00:11]} h6 {[%emt 0:00:20]} 31. Qxa5 {[%emt 0:01:27]} Qxb3 {[%emt 0:00:23]} 32. Qa8+ {[%emt 0:00:07]} Kh7 {[%emt 0:00:21]} 33. a5 {[%emt 0:00:29]} h5 {[%emt 0:02:16]} 34. h4 {[%emt 0:00:47]} g5 {[%emt 0:00:21]} 35. hxg5 {[%emt 0:00:36]} fxg5 {[%emt 0:00:32]} 36. a6 {[%emt 0:00:18]} Qd1+ {[%emt 0:00:37]} 37. Kg2 {[%emt 0:00:31]} h4 {[%emt 0:01:06]} 38. Qe4+ {[%emt 0:00:07]} Kg7 {[%emt 0:00:42]} 39. Qd4+ {[%emt 0:00:13]} 1-0

[Event "4NCL Div 1 2018-19"]
[Site "Telford"]
[Date "2019.02.09"]
[Round "5.30"]
[White "Willow, Jonah B"]
[Black "Maciol, Ryszard"]
[Result "1-0"]
[ECO "C05"]
[WhiteElo "2224"]
[BlackElo "2120"]
[Annotator "NA"]
[PlyCount "65"]
[EventDate "2018.11.10"]
[EventType "team-tourn"]
[EventCountry "GBR"]
[SourceTitle "playchess.com"]
[Source "ChessBase"]
[SourceQuality "1"]
[TimeControl "40/6000+30:3000+30"]

1. e4 {[%emt 0:00:00]} e6 {[%emt 0:00:00]} 2. d3 {[%emt 0:00:07]} d5 {[%emt 0:00:00]} 3. Nd2 {[%emt 0:00:11]} Nf6 {[%emt 0:00:16]} 4. Ngf3 {[%emt 0:00:19]} b6 {[%emt 0:01:04]} 5. e5 {[%emt 0:09:04]} Nfd7 {[%emt 0:00:51]} 6. c3 {[%emt 0:09:36]} c5 {[%emt 0:06:53]} 7. d4 {[%emt 0:02:33]} Ba6 {[%emt 0:05:58]} 8. Bxa6 {[%emt 0:05:50]} Nxa6 {[%emt 0:00:28]} 9. O-O {[%emt 0:00:11]} Be7 {[%emt 0:02:31]} 10. c4 {[%emt 0:10:41]} O-O {[%emt 0:09:06]} 11. cxd5 {[%emt 0:01:42]} exd5 {[%emt 0:00:07]} 12. Re1 {[%emt 0:00:17]} Nc7 {[%emt 0:02:29]} 13. Nf1 {[%emt 0:01:01]} Re8 {[%emt 0:03:06]} 14. Ne3 {[%emt 0:09:30]} cxd4 {[%emt 0:10:05]} 15. Qxd4 {[%emt 0:07:05]} Bc5 {[%emt 0:05:15]} 16. Qf4 {[%emt 0:01:46]} Ne6 {[%emt 0:05:44]} 17. Qg3 {[%emt 0:03:43]} Bxe3 {[%emt 0:08:40]} 18. Bxe3 {[%emt 0:00:41]} Ndc5 {[%emt 0:08:21]} 19. Rad1 {[%emt 0:01:19]} Qd7 {[%emt 0:01:46]} 20. Nh4 {[%emt 0:01:25]} Nf8 {[%emt 0:07:03]} 21. Bd4 {[%emt 0:16:36]} Ng6 {[%emt 0:08:36]} 22. Bc3 {[%emt 0:01:05]} Qe6 {[%emt 0:07:45]} 23. f3 {[%emt 0:05:37]} Rac8 {[%emt 0:03:06]} 24. Rd4 {[%emt 0:02:27]} Rc6 {[%emt 0:03:55]} 25. Rg4 {[%emt 0:05:52]} Kh8 {[%emt 0:03:25]} 26. Nxg6+ {[%emt 0:02:16]} fxg6 {[%emt 0:00:41]} 27. Rd1 {[%emt 0:03:07]} Rd8 {[%emt 0:01:03]} 28. Rh4 {[%emt 0:00:48]} Rd7 {[%emt 0:01:29]} 29. Rdd4 {[%emt 0:02:18]} Qe7 {[%emt 0:01:44]} 30. Rdf4 {[%emt 0:03:44]} g5 {[%emt 0:01:20]} 31. Qxg5 {[%emt 0:00:18]} Ne6 {[%emt 0:00:43]} 32. Qg6 {[%emt 0:04:06]} h6 {[%emt 0:00:59]} 33. Rfg4 {[%emt 0:00:27]} 1-0